bitfinex/quotes_SOLUSD_20250330
["timestamp","ask_amount","ask_price","bid_price","bid_amount"]
[1743317069789,8.0678,126.17,126.11,6.68]
[1743317070906,8.0678,126.17,126.12,0.28432314]
[1743317071408,0.03,126.17,126.12,0.28432314]
[1743317071607,0.03,126.17,126.14,20.0]
[1743317071909,0.03,126.17,126.15,6.68]
[1743317074605,22.12428168,126.16,126.08,18.79181043]
[1743317074822,14.08648168,126.15,126.09,6.68]
[1743317076987,104.02428168,126.16,126.09,6.68]
[1743317084216,23.88,126.15,126.09,6.68]
[1743317084527,104.02428168,126.16,126.09,6.68]
[1743317085197,104.02428168,126.16,126.09,6.743]
[1743317087020,14.08648168,126.13,126.09,6.743]
[1743317087408,14.08648168,126.12,126.09,6.743]
[1743317088324,14.08648168,126.11,126.09,0.063]
[1743317090227,22.12068168,126.12,126.09,0.063]
[1743317091517,6.48,126.12,126.09,0.063]
[1743317094526,14.08648168,126.14,126.09,0.063]
[1743317095021,108.33884886,126.15,126.09,0.063]
[1743317095334,14.08648168,126.14,126.09,0.063]
[1743317103914,14.08648168,126.1,126.09,0.063]
[1743317104120,14.08648168,126.11,126.09,0.063]
[1743317104323,14.08648168,126.1,126.09,0.063]
[1743317105034,21.92918168,126.1,126.09,0.063]
[1743317105415,153.51,126.08,126.04,0.063]
[1743317105616,14.08648168,126.05,126.04,0.063]
[1743317108719,22.25068168,126.05,126.04,0.063]
[1743317109042,112.65249211,126.05,126.04,0.063]
[1743317109937,112.51033054,126.05,126.04,0.063]
[1743317111231,69.98068168,126.05,126.04,0.063]
[1743317116055,22.25068168,126.05,126.04,0.063]
[1743317116346,14.08648168,126.06,126.04,0.063]
[1743317121856,14.08648168,126.05,126.04,0.063]
[1743317124454,14.08648168,126.06,126.04,0.063]
[1743317127063,14.08648168,126.05,126.04,0.063]
[1743317149988,105.78,126.07,126.04,0.063]
[1743317150185,81.9,126.08,126.04,0.063]
[1743317150481,0.03,126.09,126.04,0.063]
[1743317151087,0.03,126.09,126.06,20.0]
[1743317151392,0.03,126.09,126.07,6.7]
[1743317155270,0.03,126.09,126.07,8.3618]
[1743317164300,0.03,126.09,126.08,0.28432314]
[1743317166897,0.03,126.14,126.11,21.5487]
[1743317167100,0.03,126.14,126.12,6.7]
[1743317171289,0.03,126.14,126.13,0.28432314]
[1743317172090,0.03,126.14,126.13,19.21829514]
[1743317178012,0.03,126.14,126.13,0.28432314]
[1743317178217,0.03,126.14,126.13,26.96432314]
[1743317179414,0.03,126.16,126.13,45.89829514]
[1743317179622,0.03,126.17,126.13,45.89829514]
[1743317181214,0.03,126.17,126.16,38.933972]
[1743317181610,0.03,126.17,126.16,0.28432314]
[1743317181816,0.03,126.17,126.16,20.28432314]
[1743317182503,0.03,126.17,126.16,20.0]
[1743317183303,0.03,126.17,126.16,20.28432314]
[1743317183520,89.8613,126.25,126.17,0.28432314]
[1743317183824,89.8613,126.25,126.18,6.7]
[1743317186031,7.9613,126.25,126.21,20.0]
[1743317186206,7.9613,126.25,126.22,6.72]
[1743317187334,81.9,126.27,126.22,6.72]
[1743317189430,7.9613,126.28,126.22,6.72]
[1743317190325,7.9613,126.28,126.23,0.28432314]
[1743317190909,6.4021,126.28,126.23,0.28432314]
[1743317191535,2.8759648,126.3,126.23,0.28432314]
[1743317191728,2.8759648,126.3,126.25,20.0]
[1743317191926,2.8759648,126.3,126.26,6.72]
[1743317194127,14.08648168,126.29,126.26,6.72]
[1743317194320,2.8759648,126.3,126.26,6.72]
[1743317196807,16.96244648,126.3,126.26,6.72]
[1743317197013,2.8759648,126.3,126.26,6.72]
[1743317207266,2.8759648,126.3,126.29,20.0]
[1743317209262,2.8759648,126.3,126.29,38.933972]
[1743317209563,2.8759648,126.3,126.29,39.21829514]
[1743317209760,2.8759648,126.3,126.29,20.28432314]
[1743317210065,2.8759648,126.3,126.29,20.0]
[1743317213170,2.8759648,126.3,126.29,6.72]
[1743317214143,2.8759648,126.3,126.29,25.93829514]
[1743317214358,2.8759648,126.3,126.29,7.00432314]
[1743317214568,2.8759648,126.3,126.29,26.74]
[1743317216673,2.8759648,126.3,126.29,45.95829514]
[1743317218452,2.8759648,126.3,126.29,27.02432314]
[1743317220481,2.8759648,126.3,126.29,26.74]
[1743317220779,2.8759648,126.3,126.27,20.0]
[1743317220954,2.8759648,126.3,126.29,6.74]
[1743317224683,16.96244648,126.3,126.29,6.74]
[1743317226165,18.60974648,126.3,126.23,20.28432314]
[1743317226359,14.08648168,126.28,126.24,26.76]
[1743317226555,14.08648168,126.28,126.25,6.76]
[1743317228076,14.08648168,126.28,126.24,20.0]
[1743317228380,14.08648168,126.28,126.25,6.76]
[1743317229087,14.08648168,126.27,126.25,6.76]
[1743317229271,14.08648168,126.26,126.24,6.76]
[1743317229582,14.08648168,126.25,126.22,26.76]
[1743317229775,14.08648168,126.26,126.22,26.76]
[1743317229969,14.08648168,126.26,126.22,20.0]
[1743317230374,14.08648168,126.26,126.22,26.76]
[1743317231190,88.2293,126.28,126.22,26.76]
[1743317231488,102.31578168,126.28,126.22,26.76]
[1743317233690,14.08648168,126.27,126.22,26.76]
[1743317241493,14.11648168,126.27,126.22,26.76]
[1743317242693,0.03,126.27,126.22,26.76]
[1743317243903,0.03,126.27,126.23,18.933972]
[1743317244799,0.03,126.27,126.26,20.0]
[1743317245007,0.03,126.27,126.26,26.74]
[1743317250125,0.03,126.27,126.26,27.02432314]
[1743317255827,0.03,126.27,126.26,20.0]
[1743317256126,0.03,126.27,126.26,6.72]
[1743317261419,0.03,126.27,126.24,26.72]
[1743317264126,14.08648168,126.25,126.18,1.91912314]
[1743317264323,14.08648168,126.24,126.22,20.0]
[1743317264820,14.08648168,126.23,126.19,20.0]
[1743317265018,14.08648168,126.23,126.17,0.34732314]
[1743317265216,14.08648168,126.22,126.19,6.72]
[1743317265418,14.08648168,126.21,126.18,6.74]
[1743317265832,14.08648168,126.2,126.18,6.74]
[1743317266818,14.08648168,126.2,126.17,6.803]
[1743317268110,14.08648168,126.2,126.17,0.063]
[1743317268310,14.08648168,126.21,126.17,0.063]
[1743317268943,14.08648168,126.2,126.17,0.063]
[1743317270244,14.08648168,126.19,126.17,0.063]
[1743317277142,14.08648168,126.2,126.17,0.063]
[1743317277525,81.9,126.21,126.17,0.063]
[1743317278232,0.03,126.2,126.17,0.063]
[1743317282146,0.03,126.2,126.19,20.0]
[1743317285442,14.11648168,126.2,126.17,0.063]
[1743317285765,14.08648168,126.19,126.17,0.063]
[1743317286856,14.11648168,126.2,126.17,0.063]
[1743317287572,0.03,126.2,126.17,0.063]
[1743317290360,14.11648168,126.2,126.17,0.063]
[1743317290656,14.08648168,126.19,126.17,0.063]
[1743317291058,14.08648168,126.18,126.17,0.063]
[1743317292361,14.08648168,126.19,126.17,0.063]
[1743317292665,14.11648168,126.2,126.17,0.063]
[1743317293763,14.08648168,126.19,126.17,0.063]
[1743317293950,14.11648168,126.2,126.17,0.063]
[1743317296363,14.08648168,126.18,126.17,0.063]
[1743317297359,192.63983054,126.18,126.17,0.063]
[1743317301157,143.71648168,126.18,126.17,0.063]
[1743317301556,47.76,126.2,126.17,0.063]
[1743317301756,0.03,126.2,126.17,0.063]
[1743317302145,14.11648168,126.2,126.17,0.063]
[1743317302861,0.03,126.18,126.17,0.063]
[1743317303172,0.03,126.18,126.17,20.063]
[1743317308080,0.03,126.2,126.19,0.28432314]
[1743317308257,0.03,126.2,126.19,8.53502314]
[1743317310480,0.03,126.27,126.22,20.0]
[1743317310661,0.03,126.27,126.23,6.74]
[1743317315961,21.79784275,126.26,126.23,6.74]
[1743317319268,21.82784275,126.27,126.23,6.74]
[1743317319463,0.03,126.27,126.23,6.74]
[1743317320188,0.03,126.27,126.23,6.72]
[1743317321087,81.93,126.27,126.23,6.72]
[1743317324090,105.81,126.27,126.23,6.72]
[1743317324290,81.93,126.27,126.23,6.72]
[1743317326175,81.93,126.27,126.26,20.0]
[1743317326495,0.03,126.27,126.26,20.0]
[1743317329296,0.03,126.27,126.22,20.0]
[1743317329482,0.03,126.27,126.26,20.0]
[1743317329792,0.03,126.27,126.23,6.72]
[1743317331403,0.03,126.27,126.26,20.0]
[1743317336000,0.03,126.27,126.23,6.72]
[1743317336302,13.97765617,126.27,126.23,6.72]
[1743317337801,0.03,126.27,126.23,6.72]
[1743317339310,0.03,126.27,126.26,20.0]
[1743317348815,0.03,126.27,126.24,20.0]
[1743317349017,0.03,126.27,126.26,6.72]
[1743317350515,0.03,126.27,126.24,20.0]
[1743317350699,0.03,126.27,126.26,6.72]
[1743317361232,0.03,126.27,126.26,7.00432314]
[1743317364913,0.03,126.27,126.26,6.72]
[1743317367731,0.03,126.27,126.26,7.00432314]
[1743317373262,0.03,126.27,126.26,6.72]
[1743317373752,0.03,126.27,126.26,26.7]
[1743317374853,0.03,126.27,126.26,6.7]
[1743317375157,0.03,126.27,126.26,26.7]
[1743317377051,0.03,126.27,126.26,20.0]
[1743317377656,0.03,126.27,126.21,6.93605713]
[1743317377872,13.94765617,126.26,126.2,0.34732314]
[1743317378155,13.94765617,126.26,126.25,20.0]
[1743317378361,13.94765617,126.26,126.22,6.7]
[1743317379950,13.97765617,126.27,126.22,6.7]
[1743317381473,0.03,126.27,126.22,6.7]
[1743317386175,13.97765617,126.27,126.22,6.7]
[1743317387069,61.70765617,126.27,126.22,6.7]
[1743317387278,13.97765617,126.27,126.22,6.7]
[1743317388781,13.94765617,126.26,126.22,6.7]
[1743317390575,13.94765617,126.26,126.21,20.0]
[1743317390576,13.94765617,126.25,126.21,20.0]
[1743317390792,13.94765617,126.25,126.22,6.7]
[1743317390960,13.94765617,126.24,126.2,6.763]
[1743317391477,13.94765617,126.22,126.2,0.063]
[1743317391651,95.84765617,126.23,126.2,0.063]
[1743317397987,81.9,126.23,126.2,0.063]
[1743317398287,7.9901,126.25,126.22,20.0]
[1743317401367,21.93775617,126.25,126.22,20.0]
[1743317402883,13.94765617,126.24,126.2,0.063]
[1743317403278,95.84765617,126.24,126.2,0.063]
[1743317404099,95.84765617,126.23,126.2,0.063]
[1743317405800,13.94765617,126.21,126.2,0.063]
[1743317407599,162.17730503,126.21,126.2,0.063]
[1743317412002,80.27730503,126.21,126.2,0.063]
[1743317413700,104.11730503,126.21,126.2,0.063]
[1743317415705,104.2594666,126.21,126.2,0.063]
[1743317416183,112.5066666,126.21,126.2,0.063]
[1743317417509,112.36450503,126.21,126.2,0.063]
[1743317418383,112.5066666,126.21,126.2,0.063]
[1743317420617,112.36450503,126.21,126.2,0.063]
[1743317422199,112.39450503,126.21,126.2,0.063]
[1743317424886,104.14730503,126.21,126.2,0.063]
[1743317431020,104.2894666,126.21,126.2,0.063]
[1743317431502,104.43162817,126.21,126.2,0.063]
[1743317438820,112.35492817,126.21,126.2,0.063]
[1743317439019,104.43162817,126.21,126.2,0.063]
[1743317442320,112.35492817,126.21,126.2,0.063]
[1743317443329,112.85492817,126.21,126.2,0.063]
[1743317443503,105.46765617,126.18,126.17,0.063]
[1743317443706,124.11730503,126.18,126.17,0.063]
[1743317447628,124.40162817,126.18,126.17,0.063]
[1743317449812,180.19225285,126.18,126.17,0.063]
[1743317456941,71.52,126.14,126.08,1.6051]
[1743317457141,13.94765617,126.1,126.08,1.6051]
[1743317457321,32.59730503,126.1,126.08,1.6051]
[1743317459142,80.27730503,126.1,126.08,1.6051]
[1743317459928,66.32964886,126.1,126.08,1.6051]
[1743317460743,80.27730503,126.1,126.08,1.6051]
[1743317463452,80.27730503,126.1,126.07,0.063]
[1743317463951,104.11730503,126.1,126.07,20.063]
[1743317464749,104.11730503,126.1,126.07,0.063]
[1743317470750,66.32964886,126.1,126.07,0.063]
[1743317471654,80.27730503,126.1,126.07,0.063]
[1743317473158,66.32964886,126.1,126.07,0.063]
[1743317473342,80.27730503,126.1,126.07,0.063]
[1743317474461,66.32964886,126.1,126.07,0.063]
[1743317476864,80.27730503,126.1,126.07,0.063]
[1743317477062,66.32964886,126.1,126.07,0.063]
[1743317478260,80.27730503,126.1,126.07,0.063]
[1743317484162,104.11730503,126.1,126.07,0.063]
[1743317484364,80.27730503,126.1,126.07,0.063]
[1743317488862,104.11730503,126.1,126.07,0.063]
[1743317489257,104.2594666,126.1,126.07,0.063]
[1743317491581,112.1896666,126.1,126.07,0.063]
[1743317493384,112.33182817,126.1,126.07,0.063]
[1743317493681,126.19421043,126.08,126.07,0.063]
[1743317493887,138.8908666,126.08,126.07,0.063]
[1743317494093,130.9594666,126.08,126.07,0.063]
[1743317496060,98.10104886,126.07,126.06,0.063]
[1743317496262,110.16964886,126.05,126.04,0.063]
[1743317496493,124.11730503,126.05,126.04,0.063]
[1743317497193,124.2594666,126.05,126.04,0.063]
[1743317497565,124.40162817,126.05,126.04,0.063]
[1743317500382,81.9,126.06,126.04,0.063]
[1743317501094,66.32964886,126.05,126.04,0.063]
[1743317502297,80.27730503,126.05,126.04,0.063]
[1743317503785,66.32964886,126.05,126.04,0.063]
[1743317504485,90.16964886,126.05,126.04,0.063]
[1743317517719,47.71,126.06,126.04,0.063]
[1743317519318,47.71,126.06,126.04,6.763]
[1743317520218,0.03,126.06,126.04,6.763]
[1743317520402,0.03,126.06,126.05,1.5297]
[1743317526503,0.03,126.06,126.05,1.5927]
[1743317548262,18.64964886,126.14,126.07,20.0]
[1743317548560,129.58,126.15,126.08,6.7]
[1743317549054,90.1921,126.16,126.11,20.0]
[1743317549261,81.9,126.16,126.12,6.7]
[1743317550438,95.84765617,126.16,126.12,6.7]
[1743317550638,32.59730503,126.14,126.09,6.7]
[1743317550954,18.64964886,126.12,126.09,6.7]
[1743317551145,100.54964886,126.12,126.06,6.7]
[1743317551651,114.49730503,126.12,126.06,6.7]
[1743317553656,129.58,126.11,126.05,6.99905713]
[1743317553956,131.2001,126.11,126.06,6.7]
[1743317558170,86.94290503,126.1,126.05,0.063]
[1743317558665,81.9,126.09,126.05,0.063]
[1743317558865,18.64964886,126.08,126.05,0.063]
[1743317559249,81.9,126.07,126.05,0.063]
[1743317562770,81.9,126.07,126.05,20.063]
[1743317564495,136.2456,126.1,126.05,20.063]
[1743317566091,18.64964886,126.09,126.05,20.063]
[1743317566291,18.64964886,126.09,126.05,0.063]
[1743317566593,47.68,126.08,126.05,0.063]
[1743317569680,66.32964886,126.07,126.05,0.063]
[1743317570476,148.22964886,126.07,126.05,0.063]
[1743317586291,148.25964886,126.07,126.05,0.063]
[1743317589577,172.09964886,126.07,126.05,0.063]
[1743317593902,100.54964886,126.06,126.05,0.063]
[1743317594905,124.38964886,126.06,126.05,0.063]
[1743317600809,172.06964886,126.06,126.05,0.063]
[1743317604888,129.58,126.06,126.05,0.063]
[1743317607403,81.9,126.06,126.05,0.063]
[1743317611510,0.03,126.07,126.05,0.063]
[1743317612095,0.03,126.06,126.05,0.063]
[1743317621221,111.90060503,126.06,126.05,0.063]
[1743317622917,112.0427666,126.06,126.05,0.063]
[1743317624824,112.18492817,126.06,126.05,0.063]
[1743317627730,120.11762817,126.06,126.05,0.063]
[1743317628029,112.18492817,126.06,126.05,0.063]
[1743317630011,120.11762817,126.06,126.05,0.063]
[1743317635227,112.18492817,126.06,126.05,0.063]
[1743317635727,120.11762817,126.06,126.05,0.063]
[1743317640838,126.81762817,126.06,126.05,0.063]
[1743317645148,182.60825285,126.06,126.05,0.063]
[1743317646532,126.81762817,126.06,126.05,0.063]
[1743317648634,182.60825285,126.06,126.05,0.063]
[1743317650426,392.60825285,126.06,126.05,0.063]
[1743317650749,153.231,126.02,126.01,0.063]
[1743317650954,104.11730503,126.02,126.01,0.063]
[1743317656239,104.40162817,126.02,126.01,0.063]
[1743317664565,112.33682817,126.02,126.01,0.063]
[1743317665450,119.03682817,126.02,126.01,0.063]
[1743317666744,111.10162817,126.02,126.01,0.063]
[1743317667369,90.453972,126.02,126.01,0.063]
[1743317670756,90.16964886,126.02,126.01,0.063]
[1743317670959,66.32964886,126.02,126.01,0.063]
[1743317674053,104.3094666,126.02,126.01,0.063]
[1743317674967,104.45162817,126.02,126.01,0.063]
[1743317675467,90.503972,126.02,126.01,0.063]
[1743317675665,66.32964886,126.02,126.01,0.063]
[1743317681868,66.35964886,126.02,126.01,0.063]
[1743317684277,0.03,126.02,126.01,1.7222]
[1743317685753,0.03,126.02,126.01,21.7222]
[1743317692773,0.03,126.02,126.01,0.063]
[1743317693273,18.67964886,126.02,126.01,0.063]
[1743317694055,104.28730503,126.02,126.01,0.063]
[1743317695573,90.33964886,126.02,126.01,0.063]
[1743317708686,124.28730503,126.02,126.01,0.063]
[1743317709485,104.28730503,126.02,126.01,0.063]
[1743317709671,90.33964886,126.02,126.01,0.063]
[1743317712399,18.67964886,126.02,126.01,0.063]
[1743317712693,0.03,126.02,126.01,0.063]
[1743317731625,18.67964886,126.02,126.01,0.063]
[1743317731915,162.29730503,126.02,126.01,0.063]
[1743317732219,186.18730503,126.02,126.01,0.063]
[1743317735919,124.57162817,126.02,126.01,0.063]
[1743317740327,132.50682817,126.02,126.01,0.063]
[1743317743023,124.57162817,126.02,126.01,0.063]
[1743317755356,110.623972,126.02,126.01,0.063]
[1743317755523,66.44964886,126.02,126.01,0.063]
[1743317756334,90.33964886,126.02,126.01,0.063]
[1743317767846,104.28730503,126.02,126.01,0.063]
[1743317768038,124.28730503,126.02,126.01,0.063]
[1743317768238,132.22250503,126.02,126.01,0.063]
[1743317769441,132.3646666,126.02,126.01,0.063]
[1743317770052,124.4294666,126.02,126.01,0.063]
[1743317771756,132.50682817,126.02,126.01,0.063]
[1743317777861,124.57162817,126.02,126.01,0.063]
[1743317781064,132.50682817,126.02,126.01,0.063]
[1743317783770,124.57162817,126.02,126.01,0.063]
[1743317787075,132.50682817,126.02,126.01,0.063]
[1743317789558,124.57162817,126.02,126.01,0.063]
[1743317793459,132.50682817,126.02,126.01,0.063]
[1743317794781,124.57162817,126.02,126.01,0.063]
[1743317794986,132.50682817,126.02,126.01,0.063]
[1743317797085,196.19152971,126.02,126.0,0.063]
[1743317797380,110.30964886,125.97,125.96,0.063]
[1743317797557,124.25730503,125.97,125.96,0.063]
[1743317799084,124.3994666,125.97,125.96,0.063]
[1743317800094,131.0994666,125.97,125.96,0.063]
[1743317800883,131.24162817,125.97,125.96,0.063]
[1743317801981,139.20262817,125.97,125.96,0.063]
[1743317802691,124.54162817,125.97,125.96,0.063]
[1743317802890,66.41964886,125.97,125.96,0.063]
[1743317805488,80.36730503,125.97,125.96,0.063]
[1743317805973,104.3994666,125.97,125.96,0.063]
[1743317806391,124.3994666,125.97,125.96,0.063]
[1743317807598,124.54162817,125.97,125.96,0.063]
[1743317822605,104.54162817,125.97,125.96,0.063]
[1743317822802,66.41964886,125.97,125.96,0.063]
[1743317823385,47.77,125.98,125.96,0.063]
[1743317823792,129.67,125.98,125.96,0.063]
[1743317839734,81.9,125.97,125.96,0.063]
[1743317840539,129.67,125.97,125.96,0.063]
[1743317852954,172.20964886,125.97,125.96,0.063]
[1743317853143,104.25730503,125.97,125.96,0.063]
[1743317853355,132.19560503,125.97,125.96,0.063]
[1743317858145,132.47992817,125.97,125.96,0.063]
[1743317861060,124.54162817,125.97,125.96,0.063]
[1743317864360,132.47992817,125.97,125.96,0.063]
[1743317864862,138.65592817,125.97,125.96,0.063]
[1743317865077,140.19262817,125.97,125.96,0.063]
[1743317865242,146.50328959,125.97,125.96,0.063]
[1743317865967,148.15362817,125.97,125.96,0.063]
[1743317866260,140.69262817,125.97,125.96,0.063]
[1743317867049,148.65362817,125.97,125.96,0.063]
[1743317867350,140.19262817,125.97,125.96,0.063]
[1743317867880,71.66,125.93,125.92,0.063]
[1743317868056,90.30964886,125.93,125.92,0.063]
[1743317879883,104.25730503,125.93,125.92,0.063]
[1743317880193,124.25730503,125.93,125.92,0.063]
[1743317880489,132.37870503,125.93,125.92,0.063]
[1743317880662,140.31960503,125.93,125.92,0.063]
[1743317881678,132.5208666,125.93,125.92,0.063]
[1743317884006,140.62402817,125.93,125.92,0.063]
[1743317884171,81.774,125.91,125.9,0.063]
[1743317884372,186.1734666,125.91,125.9,0.063]
[1743317886602,172.22581043,125.91,125.9,0.063]
[1743317888602,172.367972,125.91,125.9,0.063]
[1743317890096,90.593972,125.91,125.9,0.063]
[1743317890680,90.30964886,125.91,125.9,0.063]
[1743317895394,81.9,125.94,125.91,1.6615]
[1743317895902,0.03,125.97,125.94,1.6615]
[1743317896104,0.03,125.97,125.96,20.0]
[1743317898495,0.03,126.0,125.97,20.0]
[1743317898696,0.03,126.0,125.99,8.2793]
[1743317927628,0.03,126.02,126.01,20.28432314]
[1743317927803,0.03,126.06,126.02,20.28432314]
[1743317928006,0.03,126.06,126.05,20.0]
[1743317934616,0.03,126.06,126.05,20.28432314]
[1743317946843,0.03,126.06,126.05,20.56864628]
[1743317947044,0.03,126.07,126.06,20.28432314]
[1743317947537,0.03,126.08,126.06,20.28432314]
[1743317947738,0.03,126.08,126.07,6.68]
[1743317948334,0.03,126.1,126.09,20.0]
[1743317948640,0.03,126.1,126.09,20.28432314]
[1743317952316,0.03,126.12,126.11,20.28432314]
[1743317952522,0.03,126.12,126.11,26.96432314]
[1743317956243,0.03,126.12,126.11,26.68]
[1743318006582,0.03,126.12,126.11,26.96432314]
[1743318014904,0.03,126.13,126.12,0.28432314]
[1743318015087,0.03,126.13,126.12,0.56864628]
[1743318015288,0.03,126.15,126.12,0.56864628]
[1743318019625,0.03,126.15,126.14,0.28432314]
[1743318020404,0.03,126.15,126.14,4.34677571]
[1743318021022,0.03,126.15,126.14,10.73551884]
[1743318021820,0.03,126.15,126.14,23.28074771]
[1743318023211,0.03,126.15,126.14,24.63109885]
[1743318023717,0.03,126.15,126.14,4.63109885]
[1743318026819,0.03,126.15,126.14,23.28074771]
[1743318027125,0.03,126.17,126.16,20.28432314]
[1743318027304,0.03,126.17,126.16,26.96432314]
[1743318027505,7.9497,126.27,126.16,26.96432314]
[1743318027506,8.2416,126.24,126.18,0.28432314]
[1743318027710,8.2416,126.24,126.21,20.0]
[1743318027914,8.2416,126.24,126.22,6.68]
[1743318028230,0.03,126.25,126.22,6.68]
[1743318030123,0.03,126.25,126.24,20.0]
[1743318030329,0.03,126.25,126.24,20.28432314]
[1743318031723,0.03,126.25,126.24,20.56864628]
[1743318032507,0.03,126.25,126.24,39.21829514]
[1743318036442,2.8459648,126.3,126.24,39.21829514]
[1743318036443,2.8459648,126.3,126.29,0.28432314]
[1743318036629,2.8459648,126.3,126.29,6.68]
[1743318044124,2.8759648,126.3,126.29,6.68]
[1743318053935,2.8759648,126.3,126.27,20.0]
[1743318054138,2.8759648,126.3,126.27,26.66]
[1743318056038,24.58252097,126.3,126.27,6.66]
[1743318056942,24.58252097,126.3,126.27,6.723]
[1743318057540,10.6348648,126.3,126.27,6.723]
[1743318059045,13.94765617,126.29,126.27,0.063]
[1743318060956,13.94765617,126.28,126.27,0.063]
[1743318064559,129.63,126.29,126.27,0.063]
[1743318064945,143.57765617,126.29,126.27,0.063]
[1743318065651,13.94765617,126.28,126.27,0.063]
[1743318066957,129.63,126.29,126.27,0.063]
[1743318067166,143.57765617,126.29,126.27,0.063]
[1743318067560,129.63,126.29,126.27,0.063]
[1743318067752,143.57765617,126.29,126.27,0.063]
[1743318068638,0.03,126.28,126.27,0.063]
[1743318070543,13.97765617,126.28,126.27,0.063]
[1743318071562,0.03,126.28,126.27,0.063]
[1743318072062,13.97765617,126.28,126.27,0.063]
[1743318074665,0.03,126.28,126.27,0.063]
[1743318075268,13.97765617,126.28,126.27,0.063]
[1743318077765,95.87765617,126.28,126.27,0.063]
[1743318079864,114.52730503,126.28,126.27,0.063]
[1743318080577,162.25730503,126.28,126.27,0.063]
[1743318080950,80.35730503,126.28,126.27,0.063]
[1743318104689,104.22730503,126.28,126.27,0.063]
[1743318104892,80.35730503,126.28,126.27,0.063]
[1743318105385,104.22730503,126.28,126.27,0.063]
[1743318105780,80.35730503,126.28,126.27,0.063]
[1743318107977,0.03,126.28,126.27,0.063]
[1743318121913,18.67964886,126.28,126.27,0.063]
[1743318122101,56.49730503,126.28,126.27,0.063]
[1743318122423,81.93,126.28,126.27,0.063]
[1743318122623,129.66,126.28,126.27,0.063]
[1743318125324,186.12730503,126.28,126.27,0.063]
[1743318125529,112.43052817,126.28,126.27,0.063]
[1743318125726,71.88432314,126.26,126.21,0.063]
[1743318126025,13.94765617,126.22,126.21,0.063]
[1743318126606,32.59730503,126.22,126.21,0.063]
[1743318126809,104.19730503,126.22,126.21,0.063]
[1743318127011,112.11990503,126.22,126.21,0.063]
[1743318128228,104.19730503,126.22,126.21,0.063]
[1743318128607,80.32730503,126.22,126.21,0.063]
[1743318131127,104.19730503,126.22,126.21,0.063]
[1743318131319,112.11990503,126.22,126.21,0.063]
[1743318133726,111.11990503,126.22,126.21,0.063]
[1743318135730,111.40422817,126.22,126.21,0.063]
[1743318138429,65.71868057,126.2,126.14,0.063]
[1743318138630,37.81765617,126.17,126.14,0.063]
[1743318138812,13.94765617,126.17,126.14,0.063]
[1743318141940,32.59730503,126.18,126.14,0.063]
[1743318142321,81.9,126.17,126.14,0.063]
[1743318143228,114.49730503,126.16,126.14,0.063]
[1743318143426,32.59730503,126.15,126.14,0.063]
[1743318144724,104.19730503,126.15,126.14,0.063]
[1743318144932,112.12430503,126.15,126.14,0.063]
[1743318145131,132.12430503,126.15,126.14,0.063]
[1743318145435,138.7031666,126.15,126.14,0.063]
[1743318148654,81.837,126.13,126.12,0.063]
[1743318148824,104.19730503,126.13,126.12,0.063]